bitfinex/quotes_ETHUSD_20240709
["timestamp","ask_amount","ask_price","bid_price","bid_amount"]
[1720492882304,0.03503932,3044.2,3043.9,3.28522]
[1720492882505,0.03503932,3044.2,3044.0,3.83507]
[1720492882732,3.33,3044.4,3044.0,0.55]
[1720492882901,3.33,3044.4,3043.9,3.83525]
[1720492883230,0.03491563,3044.2,3044.0,3.28513]
[1720492883446,0.03491563,3044.2,3044.1,0.55]
[1720492883601,3.33,3044.4,3044.1,3.83504]
[1720492884236,3.33,3044.4,3044.2,3.28493]
[1720492884397,3.33,3044.4,3044.2,3.83493]
[1720492885408,3.33,3044.4,3044.2,0.55]
[1720492885607,3.33,3044.4,3044.2,3.83493]
[1720492891125,3.33,3044.4,3043.5,10.3719938]
[1720492891328,3.33,3044.4,3043.9,3.28516]
[1720492891629,3.33,3044.4,3044.0,3.0]
[1720492891824,3.33,3044.4,3044.0,3.28514]
[1720492892029,0.03362957,3044.2,3044.1,6.57008]
[1720492892214,3.33,3044.4,3044.2,6.56986]
[1720492892616,3.33,3044.4,3044.2,9.56986]
[1720492893022,3.33,3044.4,3044.3,6.56964]
[1720492893222,3.33,3044.4,3044.3,10.11964]
[1720492894007,3.33,3044.4,3044.3,6.83482]
[1720492894646,3.33,3044.4,3044.3,10.11964]
[1720492896513,3.33,3044.4,3044.3,6.83482]
[1720492897333,3.33,3044.4,3044.3,10.11964]
[1720492901134,3.33,3044.4,3044.3,6.83482]
[1720492901516,3.33,3044.4,3044.3,10.11964]
[1720492902215,3.33,3044.4,3044.3,6.83482]
[1720492902415,3.33,3044.4,3044.3,10.11964]
[1720492903444,3.33,3044.4,3044.3,6.83482]
[1720492903873,3.33,3044.4,3044.3,10.11964]
[1720492904349,3.33,3044.4,3044.3,6.83482]
[1720492904924,3.33,3044.4,3044.3,3.0]
[1720492905130,3.33,3044.4,3044.1,3.0]
[1720492905331,3.33,3044.4,3044.0,3.0]
[1720492905628,3.663,3044.4,3043.8,3.28536]
[1720492905960,3.663,3044.4,3043.5,7.3719938]
[1720492905961,3.663,3044.4,3043.5,3.28565]
[1720492906262,0.37711463,3044.3,3043.5,3.28565]
[1720492906566,0.40401146,3044.2,3043.6,3.28551]
[1720492906766,0.03348185,3044.1,3043.6,3.28551]
[1720492906942,0.03348185,3044.1,3043.7,3.28546]
[1720492907150,0.34354421,3044.3,3043.7,3.28546]
[1720492907453,0.03358103,3044.2,3043.7,3.28546]
[1720492907750,0.40429355,3044.2,3043.6,3.28557]
[1720492908022,0.03352442,3044.1,3043.7,0.55]
[1720492908186,0.03352442,3044.1,3043.5,6.83568]
[1720492908388,0.37071252,3044.2,3043.5,6.83568]
[1720492909250,0.34354421,3044.3,3043.8,3.28532]
[1720492909452,0.34354421,3044.3,3043.9,3.83518]
[1720492909453,0.03361633,3044.1,3043.9,3.83518]
[1720492909591,0.34354421,3044.3,3043.9,3.83518]
[1720492909938,0.03327512,3044.0,3043.9,3.83518]
[1720492910144,0.34354421,3044.3,3043.9,3.83518]
[1720492910729,0.34354421,3044.3,3044.0,3.28512]
[1720492911031,0.34354421,3044.3,3044.1,0.55]
[1720492911903,3.33,3044.4,3044.2,3.28493]
[1720492912105,3.33,3044.4,3044.3,0.55]
[1720492912438,3.33,3044.4,3044.3,3.83482]
[1720492912606,3.33,3044.4,3044.3,10.11964]
[1720492917397,3.33,3044.4,3044.3,6.83482]
[1720492920811,3.33,3044.4,3044.3,0.55]
[1720492921015,5.9916,3044.4,3043.8,8.05631719]
[1720492921311,6.33511642,3044.4,3043.8,7.3719938]
[1720492921722,0.03366169,3044.3,3043.6,3.2855]
[1720492921924,0.03366169,3044.3,3043.4,1.71550215]
[1720492921925,0.66717333,3044.3,3043.4,1.71550215]
[1720492922109,0.66717333,3044.3,3043.5,3.2856]
[1720492922312,0.66717333,3044.3,3043.7,3.28546]
[1720492922835,0.66717333,3044.3,3043.5,3.2856]
[1720492922836,0.70022898,3044.2,3043.5,3.2856]
[1720492923036,0.73361022,3044.2,3043.5,3.2856]
[1720492923238,0.70022898,3044.2,3043.2,0.6864545]
[1720492923534,0.70022898,3044.2,3043.1,3.28611]
[1720492923899,0.03338358,3044.1,3043.1,3.28611]
[1720492924832,0.03338358,3044.1,3043.2,3.55]
[1720492925022,0.03338358,3044.1,3043.4,3.28571]
[1720492925232,6.00211642,3044.4,3043.6,3.28549]
[1720492925436,6.63562806,3044.4,3043.6,3.28549]
[1720492925621,0.03353623,3044.3,3043.7,0.55]
[1720492926002,6.63562806,3044.4,3043.7,0.55]
[1720492926211,0.03341269,3044.3,3043.7,0.55]
[1720492926464,0.70031676,3044.3,3043.7,0.55]
[1720492926606,0.70031676,3044.3,3043.7,3.83547]
[1720492927291,2.03115911,3044.4,3044.2,8.30186]
[1720492927538,1.3784185,3045.0,3044.2,8.30186]
[1720492927539,0.555,3046.2,3045.1,6.56792]
[1720492927745,0.555,3046.2,3045.1,9.44289261]
[1720492927950,0.555,3046.2,3045.1,12.72685261]
[1720492928166,0.555,3046.2,3045.1,19.01851343]
[1720492928318,0.555,3046.2,3045.1,16.84067019]
[1720492928520,0.555,3046.2,3045.1,18.67060516]
[1720492928720,0.555,3046.2,3045.1,19.69631315]
[1720492929019,0.555,3046.2,3045.1,18.6704238]
[1720492929224,0.555,3046.2,3045.1,19.69631315]
[1720492929443,0.555,3046.2,3045.1,19.35393132]
[1720492929847,0.555,3046.2,3045.1,18.6704238]
[1720492930248,0.555,3046.2,3045.1,12.97504303]
[1720492930562,0.555,3046.2,3045.1,10.11792]
[1720492931576,2.3933,3045.6,3044.7,3.28439]
[1720492931851,2.3933,3045.6,3044.9,3.28407]
[1720492932239,2.3933,3045.6,3044.7,3.28438]
[1720492932454,3.663,3045.2,3044.5,3.2846]
[1720492933353,3.663,3045.2,3044.6,3.28445]
[1720492933665,3.663,3045.2,3044.7,3.28436]
[1720492934658,3.663,3045.2,3044.5,3.2846]
[1720492934965,2.4996,3045.0,3044.2,10.6568738]
[1720492935127,2.4996,3045.0,3044.2,3.28488]
[1720492936555,2.4996,3045.0,3044.1,3.28503]
[1720492936757,2.4996,3045.0,3044.2,6.28493]
[1720492936978,3.11919,3045.0,3044.3,3.83482]
[1720492937527,2.4996,3045.0,3044.3,0.55]
[1720492937763,2.4996,3045.0,3044.5,3.28452]
[1720492937969,2.4996,3045.0,3044.6,3.83447]
[1720492938133,3.33,3045.2,3044.7,3.28437]
[1720492938463,3.33,3045.2,3044.9,3.28413]
[1720492939364,3.33,3045.2,3044.8,0.55]
[1720492939558,3.33,3045.2,3044.5,3.28459]
[1720492939559,3.663,3045.2,3044.5,3.28459]
[1720492939753,3.663,3045.2,3044.6,3.83449]
[1720492939956,3.663,3045.2,3044.7,3.28438]
[1720492940159,3.663,3045.2,3044.9,3.28417]
[1720492940160,3.33,3045.2,3044.9,3.28417]
[1720492940533,3.33,3045.2,3044.8,3.28428]
[1720492940737,3.33,3045.2,3044.9,0.55]
[1720492941247,3.33,3045.2,3045.1,3.28396]
[1720492941563,3.33,3045.2,3045.1,7.11792]
[1720492942958,3.885,3045.2,3045.1,7.11792]
[1720492944366,3.885,3045.2,3045.1,10.11792]
[1720492945150,3.885,3045.2,3045.1,15.13388]
[1720492945353,4.44,3045.2,3045.1,18.76281325]
[1720492945751,4.44,3045.2,3045.1,18.76278167]
[1720492945953,4.44,3045.2,3045.1,17.61998]
[1720492947243,4.44,3045.2,3045.1,11.84992]
[1720492947440,4.44,3045.2,3045.1,3.28396]
[1720492947873,4.995,3045.2,3045.1,6.56792]
[1720492948075,4.995,3045.2,3045.1,3.28396]
[1720492948663,4.995,3045.2,3045.1,6.56792]
[1720492948866,4.995,3045.2,3045.1,10.11792]
[1720492949378,4.995,3045.2,3045.1,6.83396]
[1720492949779,4.995,3045.2,3045.1,10.11792]
[1720492950160,5.55,3045.2,3045.1,10.11792]
[1720492950364,5.55,3045.2,3045.1,13.40188]
[1720492950748,5.55,3045.2,3045.1,10.11792]
[1720492952876,6.105,3045.2,3045.1,10.11792]
[1720492955089,6.105,3045.2,3045.1,6.83396]
[1720492955588,6.66,3045.2,3045.1,6.83396]
[1720492956560,6.66,3045.2,3044.6,2.3531]
[1720492956561,6.66,3045.2,3044.6,3.28443]
[1720492956762,0.666,3045.1,3044.7,3.28438]
[1720492956990,6.66,3045.2,3044.7,3.28438]
[1720492957290,6.66,3045.2,3044.3,10.6567938]
[1720492957660,6.66,3045.2,3044.5,3.28454]
[1720492957879,7.215,3045.2,3044.5,3.28454]
[1720492958096,7.215,3045.2,3044.6,3.28449]
[1720492960322,8.17727,3045.2,3044.5,3.28454]
[1720492960494,8.73227,3045.2,3044.6,0.55]
[1720492960697,7.77,3045.2,3044.7,3.28438]
[1720492960898,7.77,3045.2,3044.8,3.83425]
[1720492961121,7.77,3045.2,3044.6,3.83443]
[1720492961294,7.77,3045.2,3044.6,0.55]
[1720492961488,8.78777,3045.2,3044.6,0.55]
[1720492962998,9.34277,3045.2,3044.4,0.55]
[1720492963208,9.34277,3045.2,3044.3,0.55]
[1720492963407,9.34277,3045.2,3044.2,3.28491]
[1720492963408,3.257977,3045.1,3044.2,3.28491]
[1720492964990,3.257977,3045.1,3044.3,0.55]
[1720492965385,3.257977,3045.1,3044.3,3.83482]
[1720492965738,2.3237,3045.1,3044.4,3.28465]
[1720492965942,2.3237,3045.1,3044.5,0.55]
[1720492966287,2.3237,3045.1,3044.2,3.2849]
[1720492966492,2.3237,3045.1,3044.3,0.55]
[1720492966689,1.12037,3045.0,3044.3,0.55]
[1720492966896,1.12037,3045.0,3044.3,3.8348]
[1720492968805,2.3237,3045.1,3044.5,3.2846]
[1720492969005,2.3237,3045.1,3044.6,0.55]
[1720492969899,2.3237,3045.1,3044.6,3.83441]
[1720492971526,9.99,3045.2,3044.8,3.28427]
[1720492971828,9.99,3045.2,3044.9,0.55]
[1720492972208,9.99,3045.2,3044.5,3.28453]
[1720492972405,9.99,3045.2,3044.6,3.2845]
[1720492973195,10.545,3045.2,3044.6,3.2845]
[1720492973928,10.545,3045.2,3044.7,3.28432]
[1720492974104,10.545,3045.2,3044.9,3.28416]
[1720492974426,10.545,3045.2,3044.8,3.28427]
[1720492974636,11.5995,3045.2,3044.7,0.55]
[1720492974817,11.5995,3045.2,3044.5,3.28457]
[1720492975018,11.5995,3045.2,3044.6,0.55]
[1720492975352,11.5995,3045.2,3044.6,3.83448]
[1720492975498,10.545,3045.2,3044.6,3.83448]
[1720492975694,11.1,3045.2,3044.6,3.83448]
[1720492978236,11.1,3045.2,3044.7,3.28439]
[1720492979133,11.655,3045.2,3044.7,3.28439]
[1720492979332,11.655,3045.2,3044.8,3.28421]
[1720492979748,11.655,3045.2,3044.9,3.28415]
[1720492979990,11.655,3045.2,3045.1,3.28396]
[1720492980238,11.655,3045.2,3044.8,3.28421]
[1720492980425,11.655,3045.2,3044.9,6.83417]
[1720492981168,2.4309,3045.1,3044.4,7.3719938]
[1720492981449,12.21,3045.2,3044.6,3.2845]
[1720492981757,12.21,3045.2,3044.8,3.28427]
[1720492982047,13.431,3045.2,3044.6,3.28442]
[1720492982258,13.431,3045.2,3044.7,0.55]
[1720492982471,13.431,3045.2,3044.5,3.8346]
[1720492983928,13.986,3045.2,3044.5,3.8346]
[1720492984176,1.3986,3045.1,3044.5,0.55]
[1720492984460,1.3986,3045.1,3044.4,3.83462]
[1720492984668,12.765,3045.2,3044.4,3.83462]
[1720492984827,12.765,3045.2,3044.5,3.28454]
[1720492985022,12.765,3045.2,3044.6,0.55]
[1720492985708,12.765,3045.2,3044.6,3.83449]
[1720492985906,12.765,3045.2,3044.6,0.55]
[1720492986109,12.765,3045.2,3044.5,3.83456]
[1720492986650,13.32,3045.2,3044.5,3.83456]
[1720492986857,14.652,3045.2,3044.5,3.83456]
[1720492987054,14.652,3045.2,3044.6,3.28449]
[1720492987265,13.32,3045.2,3044.6,3.28449]
[1720492988315,1.13781258,3045.1,3044.6,3.28449]
[1720492988532,13.32,3045.2,3044.6,3.28449]
[1720492989017,13.875,3045.2,3044.6,3.28449]
[1720492990059,13.875,3045.2,3044.5,0.55]
[1720492990359,2.52530897,3045.1,3044.5,0.55]
[1720492990532,2.52530897,3045.1,3044.4,0.55]
[1720492990533,1.13780897,3045.0,3044.4,0.55]
[1720492990844,1.13780897,3045.0,3044.3,3.0]
[1720492992135,1.3875,3045.1,3044.3,3.0]
[1720492992332,1.13786531,3045.0,3044.3,3.0]
[1720492992543,1.3875,3045.1,3044.3,3.0]
[1720492992716,1.13788104,3045.0,3044.3,3.0]
[1720492992914,1.13789153,3044.9,3044.3,3.0]
[1720492993115,1.3875,3045.1,3044.3,3.0]
[1720492993309,1.13789391,3045.0,3044.3,3.0]
[1720492993521,1.3875,3045.1,3044.3,3.0]
[1720492993744,1.13787106,3045.0,3044.3,6.28482]
[1720492993941,1.3875,3045.1,3044.3,6.28482]
[1720492994163,1.137864,3045.0,3044.3,6.28482]
[1720492994447,1.3875,3045.1,3044.3,6.28482]
[1720492995044,1.13785816,3045.0,3044.3,6.28482]
[1720492995229,1.75103582,3045.0,3044.3,6.28482]
[1720492995633,2.2933,3044.9,3043.8,3.28535]
[1720492995834,1.1378834,3044.8,3043.5,5.00082547]
[1720492996034,1.1378834,3044.8,3043.5,3.28566]
[1720492996236,0.34311834,3044.7,3043.5,3.28566]
[1720492996430,1.1378834,3044.6,3043.5,3.28566]
[1720492996630,1.1378834,3044.6,3043.4,7.3719938]
[1720492997046,1.1378834,3044.6,3043.5,3.28562]
[1720492998035,1.1378834,3044.6,3043.6,0.55]
[1720492998235,1.1378834,3044.6,3043.5,3.55]
[1720492998443,2.4901,3044.6,3043.5,3.55]
[1720492998758,2.4901,3044.4,3043.0,3.28622]
[1720492998959,1.13818533,3044.3,3043.1,3.28611]
[1720492999840,1.13818533,3044.3,3043.2,3.0]
[1720493000035,0.36282853,3044.2,3043.3,0.55]
[1720493001437,2.4901,3044.4,3043.3,0.55]
[1720493001653,2.4901,3044.4,3043.4,3.28579]
[1720493001836,2.4901,3044.4,3043.5,0.55]
[1720493002443,2.4901,3044.4,3043.6,3.28548]
[1720493002647,2.4901,3044.4,3043.7,0.55]
[1720493003748,2.4901,3044.4,3043.7,3.83544]
[1720493003946,2.4088,3044.8,3044.1,3.28503]
[1720493004255,2.4088,3044.8,3044.2,0.55]
[1720493004840,2.4088,3044.8,3044.2,3.83493]
[1720493006935,0.555,3045.0,3044.4,3.28471]
[1720493007351,0.555,3045.0,3044.5,0.55]
[1720493007779,0.555,3045.0,3044.7,3.28436]
[1720493010570,0.555,3045.0,3044.6,3.2844]
[1720493010772,0.555,3045.0,3044.5,0.55]
[1720493010773,2.4088,3044.9,3044.5,0.55]
[1720493011070,2.4088,3044.9,3044.3,3.55]
[1720493011447,2.4088,3044.9,3044.4,3.2847]
[1720493012071,0.555,3045.0,3044.5,3.2846]
[1720493012293,0.555,3045.0,3044.6,3.83442]
[1720493012499,0.555,3045.0,3044.6,0.55]
[1720493012643,0.555,3045.0,3044.6,3.83448]
[1720493012994,0.555,3045.0,3044.7,3.28435]
[1720493013194,0.555,3045.0,3044.9,3.28418]
[1720493013343,0.555,3045.0,3044.9,3.83418]
[1720493017657,0.555,3045.0,3044.9,7.11836]
[1720493017915,0.555,3045.0,3044.9,10.40254]
[1720493018073,2.775,3045.1,3045.0,9.85221]
[1720493018388,2.775,3045.1,3045.0,13.40221]
[1720493018795,2.775,3045.1,3045.0,10.11814]
[1720493022509,2.775,3045.1,3044.7,3.28435]
[1720493022708,2.775,3045.1,3044.3,8.05549738]
[1720493022709,4.8285,3045.1,3044.4,3.28467]
[1720493023007,4.8285,3045.1,3044.3,7.3719938]
[1720493023008,2.775,3045.1,3044.3,3.2848]
[1720493023160,2.775,3045.1,3044.2,3.2849]
[1720493023361,2.775,3045.1,3043.8,10.6572738]
[1720493023564,2.775,3045.1,3043.4,3.28576]
[1720493023565,5.8271,3045.0,3043.4,3.28576]
[1720493023797,2.3671,3044.9,3043.4,3.28576]
[1720493024589,2.3671,3044.9,3043.2,3.28598]
[1720493024590,2.3484,3044.8,3043.2,3.28598]
[1720493024788,2.3484,3044.8,3043.0,3.28621]
[1720493024789,6.9466283,3044.7,3043.0,3.28621]
[1720493024994,6.68924,3044.7,3043.3,3.2859]
[1720493026082,6.68924,3044.7,3043.4,0.55]
[1720493027012,6.93036855,3044.6,3043.2,6.836]
[1720493027183,6.461024,3044.6,3043.2,6.836]
[1720493027702,3.001024,3044.6,3043.3,3.28587]
[1720493027925,3.001024,3044.6,3043.4,0.55]
[1720493027926,2.3321,3044.6,3043.4,0.55]
[1720493028294,2.3321,3044.6,3043.3,0.55]
[1720493029108,2.3321,3044.6,3043.4,3.28578]
[1720493029409,2.3321,3044.6,3043.5,0.55]
[1720493029582,2.3321,3044.6,3043.6,3.28556]
[1720493029583,0.321294,3044.5,3043.6,3.28556]
[1720493029903,0.321294,3044.5,3043.7,0.55]
[1720493031200,2.3321,3044.6,3043.7,0.55]
[1720493031385,2.29021,3045.0,3044.0,3.28509]
[1720493031712,2.29021,3045.0,3044.2,3.28485]
[1720493031912,5.1817,3045.1,3044.3,3.8348]
[1720493032410,5.1817,3045.1,3044.4,3.28469]
[1720493033613,5.1817,3045.1,3044.5,3.83459]
[1720493034200,5.1817,3045.1,3044.5,0.55]
[1720493034519,5.1817,3045.1,3044.5,3.8346]
[1720493034717,5.1817,3045.1,3044.6,3.28449]
[1720493035912,2.775,3045.1,3045.0,3.28407]
[1720493036111,2.775,3045.1,3045.0,3.83407]
[1720493037822,2.775,3045.1,3045.0,7.11814]
[1720493038192,2.775,3045.1,3045.0,15.13421]
[1720493038380,1.665,3045.1,3045.0,18.41828]
[1720493038580,21.09,3045.2,3045.1,15.43654]
[1720493038894,21.13796428,3045.2,3045.1,18.84340459]
[1720493039113,21.13796428,3045.2,3045.1,20.12932616]
[1720493039314,21.13796428,3045.2,3045.1,21.84341241]
[1720493039498,21.13796428,3045.2,3045.1,18.98654]
[1720493039699,11.28638428,3045.2,3045.1,18.98654]
[1720493039904,4.71866428,3045.2,3045.1,20.12927153]
[1720493040129,4.71866428,3045.2,3045.1,20.1292488]
[1720493040513,4.71866428,3045.2,3045.1,18.98654]
[1720493040719,4.71866428,3045.2,3045.1,18.01058]
[1720493041696,4.71866428,3045.2,3045.1,21.29454]
[1720493041895,4.71866428,3045.2,3045.1,22.43725882]
[1720493042098,4.71866428,3045.2,3045.1,21.29454]
[1720493043000,3.88726428,3045.2,3045.1,21.29454]
[1720493043230,3.88726428,3045.2,3045.1,22.43723222]
[1720493043526,3.88726428,3045.2,3045.1,21.29454]
[1720493043734,0.19080428,3045.2,3045.1,21.29454]
[1720493043898,0.555,3046.2,3046.1,6.56576]
[1720493044099,0.555,3046.2,3046.1,10.11576]
[1720493044733,0.555,3046.2,3046.1,6.83288]
[1720493045602,0.555,3046.2,3046.1,10.11576]
[1720493046197,0.555,3046.2,3046.1,3.55]
[1720493046402,0.555,3046.2,3046.1,0.55]
[1720493046621,0.555,3046.2,3046.1,3.83288]
[1720493046827,0.555,3046.2,3046.1,6.83288]
[1720493047235,0.555,3046.2,3046.1,3.55]
[1720493047410,0.555,3046.2,3046.1,0.55]
[1720493047617,0.555,3046.2,3046.0,0.55]
[1720493050563,0.555,3046.2,3045.5,7.3719938]
[1720493050564,2.9024,3046.2,3045.7,3.0]
[1720493050843,2.9024,3046.2,3045.6,3.0]
[1720493051019,2.6524,3046.2,3045.6,3.0]
[1720493051928,0.305,3046.2,3045.6,3.0]
[1720493052123,0.305,3046.2,3045.8,3.28317]
[1720493052423,0.305,3046.2,3045.9,3.55]
[1720493053136,0.305,3046.2,3046.0,3.28289]
[1720493053446,0.305,3046.2,3046.1,6.83288]
[1720493054259,0.305,3046.2,3046.1,0.55]
[1720493054423,0.305,3046.2,3045.8,3.0]
[1720493054623,0.305,3046.2,3045.9,0.55]
[1720493055218,0.305,3046.2,3045.6,3.0]
[1720493055550,0.305,3046.2,3045.7,0.55]
[1720493055551,0.719267,3046.2,3045.7,0.55]
[1720493055914,0.719267,3046.2,3045.6,0.55]
[1720493058346,0.305,3046.2,3045.6,0.55]
[1720493059199,2.3069,3046.1,3045.6,0.55]
[1720493059421,2.3069,3046.1,3045.0,3.28404]
[1720493059422,5.58979,3046.1,3045.0,3.28404]
[1720493059692,3.2835,3045.6,3044.6,3.28442]
[1720493060180,2.3069,3045.5,3044.7,3.28438]
[1720493061159,2.3069,3045.5,3044.8,3.0]
[1720493061494,0.555,3045.0,3044.8,3.0]
[1720493061716,0.555,3045.0,3044.9,0.55]
[1720493062570,0.555,3045.0,3044.8,3.0]
[1720493062795,0.555,3045.0,3044.4,3.28467]
[1720493063021,0.555,3045.0,3044.3,3.28482]
[1720493063339,0.555,3045.0,3044.2,3.28492]
[1720493063990,0.555,3044.8,3044.2,3.28492]
[1720493064799,0.555,3044.8,3044.3,0.55]
[1720493065380,0.555,3044.8,3044.3,3.55]
[1720493065902,0.555,3044.8,3044.3,6.83482]
[1720493066417,0.555,3044.8,3044.3,3.55]
[1720493066584,0.555,3044.6,3044.4,3.0]
[1720493066788,0.555,3044.6,3044.5,0.55]
[1720493067084,0.555,3044.6,3044.3,0.55]
[1720493067280,0.555,3044.6,3044.2,0.55]
[1720493067677,0.555,3044.6,3044.1,3.0]
[1720493067879,0.555,3044.6,3043.9,3.0]
[1720493068780,0.555,3044.6,3044.2,3.2849]
[1720493068991,1.11,3044.6,3044.3,3.55]
[1720493069480,1.11,3044.6,3044.3,0.55]
[1720493069681,1.50651,3044.6,3044.2,0.55]
[1720493070076,4.79102,3044.6,3043.9,0.55]
[1720493070707,4.05819545,3044.5,3043.9,0.55]
[1720493070929,4.05819545,3044.5,3043.6,3.28553]
[1720493070930,4.05819545,3044.5,3043.7,0.55]
[1720493071627,3.28473,3044.4,3043.7,0.55]
[1720493072719,3.28486,3044.3,3043.7,0.55]
[1720493073021,4.01916555,3044.3,3043.5,3.55]
[1720493073211,3.28486,3044.3,3043.5,6.83568]
[1720493074219,0.555,3044.3,3043.5,6.83568]
[1720493074718,3.83984,3044.3,3043.5,6.83568]
[1720493076345,2.273,3044.2,3043.5,0.55]
[1720493076494,2.656984,3044.2,3043.4,3.55]
[1720493076690,6.11301,3044.2,3043.4,3.55]
[1720493076928,3.28504,3044.1,3043.4,3.55]
[1720493078005,3.28515,3044.0,3043.4,3.55]
[1720493078316,4.224969,3044.0,3043.4,0.55]
[1720493078497,4.224969,3044.0,3043.2,3.0]
[1720493078498,4.224969,3044.0,3043.3,0.55]
[1720493078699,3.28515,3044.0,3043.3,0.55]
[1720493079930,2.828,3044.2,3042.8,3.28643]
[1720493080106,3.2855,3043.7,3042.9,3.28633]
[1720493081236,3.2855,3043.7,3043.0,3.0]
[1720493082229,3.2855,3043.7,3043.1,0.55]
[1720493082838,0.3383,3044.1,3042.5,3.28672]
[1720493082839,2.4681,3043.6,3042.5,3.28672]
[1720493083003,3.28593,3043.3,3042.5,3.28672]
[1720493083198,3.28593,3043.3,3042.3,3.28695]
[1720493083534,3.28593,3043.3,3042.1,3.28716]
[1720493083535,3.2862,3043.1,3042.1,3.28716]
[1720493083737,3.2862,3043.1,3042.1,3.2871]
[1720493083900,3.2862,3043.1,3042.3,3.28697]
[1720493084601,3.2862,3043.1,3042.4,3.0]
[1720493085037,3.28593,3043.3,3042.5,3.28675]
[1720493085525,3.28603,3043.2,3042.4,3.0]
[1720493086117,3.28603,3043.2,3042.5,0.55]
[1720493086516,3.28624,3043.0,3042.4,3.0]
[1720493087324,3.28603,3043.2,3042.4,3.0]
[1720493087714,3.28619,3043.1,3042.4,3.0]
[1720493088101,3.28603,3043.2,3042.4,3.0]
[1720493088301,3.28612,3043.1,3042.4,3.0]
[1720493088522,3.28603,3043.2,3042.4,3.0]
[1720493088725,3.28603,3043.2,3042.3,3.28691]
[1720493088726,3.28623,3043.0,3042.2,3.28709]
[1720493088925,3.28615,3043.1,3042.3,3.83692]
[1720493089128,3.28603,3043.2,3042.3,3.83692]
[1720493089646,2.79665,3043.6,3042.5,3.28675]
[1720493089938,6.0823,3043.6,3042.7,3.28654]
[1720493090137,3.28569,3043.5,3042.7,3.28654]
[1720493090305,3.28569,3043.5,3042.8,0.55]
[1720493092240,2.4681,3043.6,3042.8,0.55]
[1720493092537,2.4681,3043.6,3043.0,3.28615]
[1720493092739,2.4681,3043.6,3043.1,0.55]
[1720493093549,2.4083,3043.9,3043.2,3.28594]
[1720493093718,2.4083,3043.9,3043.3,0.55]
[1720493094359,9.5333,3044.2,3043.3,0.55]
[1720493094666,4.29389,3044.1,3043.3,0.55]
[1720493095017,3.28516,3044.0,3043.1,6.28611]
[1720493095347,3.28516,3044.0,3043.1,3.0]
[1720493095524,3.28537,3043.8,3043.2,0.55]
[1720493096037,2.4083,3043.5,3042.5,3.28668]
[1720493096215,5.69406,3043.5,3042.6,6.28656]
[1720493096411,3.28555,3043.7,3042.7,3.28655]
[1720493097152,3.2856,3043.6,3042.7,3.28655]
[1720493097359,3.2856,3043.6,3042.9,3.28632]
[1720493098666,0.569377,3043.7,3042.9,3.28632]
[1720493098833,0.569377,3043.7,3042.9,6.57258]
[1720493100355,2.22,3044.8,3043.1,3.2861]
[1720493100356,2.9437,3044.3,3043.1,3.2861]
[1720493100553,3.84001,3044.2,3043.3,3.28583]
[1720493100852,3.28517,3044.0,3043.3,3.28583]
[1720493101242,0.678371,3044.1,3043.3,3.28583]
[1720493101871,0.555,3044.2,3043.5,3.28566]
[1720493102090,0.555,3044.2,3043.8,3.28527]
[1720493102219,0.555,3044.2,3044.1,3.28504]
[1720493102653,0.555,3044.2,3044.1,3.83504]
[1720493103191,0.555,3044.2,3044.1,10.12008]
[1720493103476,0.555,3044.3,3044.2,6.56986]
[1720493103617,0.555,3044.3,3044.2,7.11986]
[1720493103822,0.555,3044.3,3044.2,3.83493]
[1720493104321,0.555,3044.3,3044.2,12.20248595]
[1720493104638,0.555,3044.3,3044.2,15.20248595]
[1720493104943,1.665,3044.4,3044.3,13.13928]
[1720493105146,1.665,3044.4,3044.3,18.72092092]
[1720493105357,1.665,3044.4,3044.3,19.4020338]
[1720493105537,1.665,3044.4,3044.3,16.54417288]
[1720493105733,1.665,3044.4,3044.3,18.72064028]
[1720493106137,1.665,3044.4,3044.3,19.40189751]
[1720493106939,1e-05,3044.6,3044.5,15.47294]
[1720493107285,1e-05,3044.6,3044.5,20.84711735]
[1720493107439,1e-05,3044.6,3044.5,22.56177622]
[1720493107641,1e-05,3044.6,3044.5,19.27716622]
[1720493107881,1e-05,3044.6,3044.5,17.56260605]
[1720493108237,1e-05,3044.6,3044.5,16.88137011]
[1720493108357,1e-05,3044.6,3044.5,13.04676011]
[1720493108554,1e-05,3044.6,3044.5,9.56922]
[1720493110049,1e-05,3044.6,3044.5,10.11922]
[1720493110254,1e-05,3044.6,3044.5,6.83461]
[1720493110873,1e-05,3044.6,3044.5,3.55]
[1720493111049,1e-05,3044.6,3044.5,3.83461]
[1720493111246,1e-05,3044.6,3044.5,6.83461]
[1720493111449,1e-05,3044.6,3044.5,10.11922]
[1720493111673,1e-05,3044.6,3044.5,13.40383]
[1720493111876,1e-05,3044.6,3044.5,10.11922]
[1720493113070,1e-05,3044.6,3044.5,13.40383]
[1720493113591,1e-05,3044.6,3044.5,10.11922]
[1720493114509,1e-05,3044.6,3044.5,6.83461]